[Event "GAMMA Reykjavik Open 2019"]
[Site "Reykjavik"]
[Date "2019.04.10"]
[Round "4.10"]
[White "Potkin, Vladimir"]
[Black "Bjornsson, Sigurbjorn"]
[Result "1-0"]
[ECO "A49"]
[WhiteElo "2597"]
[BlackElo "2312"]
[Annotator "RC"]
[PlyCount "89"]
[EventDate "2019.04.04"]
[EventType "swiss"]
[EventCountry "ISL"]
[SourceTitle "playchess.com"]
[Source "ChessBase"]
[SourceQuality "1"]
[TimeControl "40/5400+30:1800+30"]

1. d4 {[%emt 0:00:00]} Nf6 {[%emt 0:00:00]} 2. Nf3 {[%emt 0:00:00]} g6 {[%emt 0:00:17]} 3. g3 {[%emt 0:00:09]} Bg7 {[%emt 0:00:06]} 4. Bg2 {[%emt 0:00:06]} O-O {[%emt 0:00:23]} 5. O-O {[%emt 0:00:05]} d6 {[%emt 0:00:25]} 6. a4 {[%emt 0:00:15]} a5 {[%emt 0:00:49]} 7. Re1 {[%emt 0:01:39]} Ne4 {[%emt 0:08:40]} 8. c3 {[%emt 0:14:37]} c6 {[%emt 0:07:18]} 9. Nbd2 {[%emt 0:06:42]} Nxd2 {[%emt 0:02:49]} 10. Bxd2 {[%emt 0:00:07]} e5 {[%emt 0:04:08]} 11. e4 {[%emt 0:02:20]} Nd7 {[%emt 0:07:49]} 12. Qc2 {[%emt 0:09:04]} Re8 {[%emt 0:01:12]} 13. Rad1 {[%emt 0:00:14]} Qc7 {[%emt 0:02:16]} 14. Be3 {[%emt 0:01:30]} Nf6 {[%emt 0:02:22]} 15. h3 {[%emt 0:04:18]} Be6 {[%emt 0:07:58]} 16. Ng5 {[%emt 0:03:13]} Bc8 {[%emt 0:10:58]} 17. Bf1 {[%emt 0:18:51]} h6 {[%emt 0:02:05]} 18. Nf3 {[%emt 0:00:27]} Be6 {[%emt 0:09:44]} 19. dxe5 {[%emt 0:10:40]} dxe5 {[%emt 0:00:05]} 20. c4 {[%emt 0:00:43]} b6 {[%emt 0:08:47]} 21. c5 {[%emt 0:01:11]} bxc5 {[%emt 0:00:02]} 22. Bxc5 {[%emt 0:00:35]} Nd7 {[%emt 0:00:41]} 23. Bd6 {[%emt 0:04:46]} Qb7 {[%emt 0:01:08]} 24. Nd2 {[%emt 0:00:21]} Nf8 {[%emt 0:04:30]} 25. Nc4 {[%emt 0:03:45]} Bxc4 {[%emt 0:00:40]} 26. Bxc4 {[%emt 0:00:05]} Ne6 {[%emt 0:00:15]} 27. Bxe6 {[%emt 0:01:46]} Rxe6 {[%emt 0:00:04]} 28. Rd3 {[%emt 0:04:22]} Bf8 {[%emt 0:02:14]} 29. Bxf8 {[%emt 0:00:55]} Rxf8 {[%emt 0:01:13]} 30. Red1 {[%emt 0:00:25]} Rb8 {[%emt 0:04:57]} 31. b3 {[%emt 0:00:07]} Kg7 {[%emt 0:01:05]} 32. h4 {[%emt 0:01:06]} h5 {[%emt 0:00:16]} 33. Rc3 {[%emt 0:01:04]} Qb4 {[%emt 0:01:36]} 34. Rd7 {[%emt 0:01:05]} Rf6 {[%emt 0:02:20]} 35. Kg2 {[%emt 0:01:42]} Rb6 {[%emt 0:01:52]} 36. Rd8 {[%emt 0:03:23]} Rb7 {[%emt 0:00:27]} 37. Qd3 {[%emt 0:00:46]} Qb6 {[%emt 0:02:12]} 38. f3 {[%emt 0:00:42]} Qb4 {[%emt 0:02:10]} 39. Qc2 {[%emt 0:00:33]} Qb6 {[%emt 0:02:35]} 40. Rcd3 {[%emt 0:00:00]} Qb4 {[%emt 0:00:00]} 41. Qc3 {[%emt 0:10:02]} Qa3 {[%emt 0:12:53]} 42. Qxe5 {[%emt 0:03:19]} Qa2+ {[%emt 0:01:25]} 43. Rd2 {[%emt 0:04:24]} Qxb3 {[%emt 0:02:07]} 44. Qe8 {[%emt 0:00:58]} Qxf3+ {[%emt 0:01:38]} 45. Kh2 {[%emt 0:00:06]} 1-0

[Event "GAMMA Reykjavik Open 2019"]
[Site "Reykjavik"]
[Date "2019.04.10"]
[Round "4.18"]
[White "Kanarek, Marcel"]
[Black "L'Ami, Alina"]
[Result "1-0"]
[ECO "E90"]
[WhiteElo "2505"]
[BlackElo "2290"]
[Annotator "ChessBase"]
[PlyCount "119"]
[EventDate "2019.04.04"]
[EventType "swiss"]
[EventCountry "ISL"]
[SourceTitle "playchess.com"]
[Source "ChessBase"]
[SourceQuality "1"]
[TimeControl "40/5400+30:1800+30"]

1. d4 {[%emt 0:00:00]} Nf6 {[%emt 0:00:00]} 2. c4 {[%emt 0:00:00]} g6 {[%emt 0:00:00]} 3. Nc3 {[%emt 0:00:00]} Bg7 {[%emt 0:00:00]} 4. e4 {[%emt 0:00:00]} d6 {[%emt 0:00:45]} 5. h3 {[%emt 0:00:00]} O-O {[%emt 0:00:08]} 6. Be3 {[%emt 0:00:07]} c5 {[%emt 0:00:10]} 7. d5 {[%emt 0:00:18]} e6 {[%emt 0:02:33]} 8. Bd3 {[%emt 0:00:55]} exd5 {[%emt 0:02:40]} 9. exd5 {[%emt 0:00:13]} a6 {[%emt 0:01:30]} 10. a4 {[%emt 0:00:53]} Nbd7 {[%emt 0:00:50]} 11. Nf3 {[%emt 0:00:33]} Re8 {[%emt 0:03:06]} 12. O-O {[%emt 0:00:11]} Ne5 {[%emt 0:01:01]} 13. Nxe5 {[%emt 0:04:59]} Rxe5 {[%emt 0:03:00]} 14. Bf4 {[%emt 0:06:58]} Re8 {[%emt 0:01:30]} 15. Bh2 {[%emt 0:24:37]} b6 {[%emt 0:16:21]} 16. Qf3 {[%emt 0:10:58]} Ra7 {[%emt 0:06:03]} 17. g4 {[%emt 0:04:52]} h5 {[%emt 0:04:45]} 18. g5 {[%emt 0:03:34]} Nh7 {[%emt 0:15:01]} 19. h4 {[%emt 0:01:28]} Bg4 {[%emt 0:00:51]} 20. Qg2 {[%emt 0:03:23]} Qd7 {[%emt 0:10:09]} 21. Rfe1 {[%emt 0:01:08]} Raa8 {[%emt 0:00:11]} 22. f3 {[%emt 0:06:19]} Bh3 {[%emt 0:02:55]} 23. Qc2 {[%emt 0:03:35]} Re7 {[%emt 0:06:03]} 24. Bg3 {[%emt 0:08:37]} Rae8 {[%emt 0:01:35]} 25. Rxe7 {[%emt 0:01:06]} Rxe7 {[%emt 0:01:16]} 26. Kh2 {[%emt 0:06:40]} Be5 {[%emt 0:04:00]} 27. Ne2 {[%emt 0:05:00]} Qc8 {[%emt 0:03:43]} 28. Nf4 {[%emt 0:04:27]} Bd7 {[%emt 0:05:25]} 29. Kg2 {[%emt 0:00:55]} Nf8 {[%emt 0:01:15]} 30. Ne2 {[%emt 0:00:44]} Qe8 {[%emt 0:02:24]} 31. Kf2 {[%emt 0:00:33]} b5 {[%emt 0:02:08]} 32. Bxe5 {[%emt 0:01:29]} Rxe5 {[%emt 0:00:04]} 33. axb5 {[%emt 0:00:03]} axb5 {[%emt 0:00:05]} 34. b3 {[%emt 0:00:41]} Bf5 {[%emt 0:01:18]} 35. Ng3 {[%emt 0:00:44]} Bxd3 {[%emt 0:01:19]} 36. Qxd3 {[%emt 0:00:01]} bxc4 {[%emt 0:02:44]} 37. bxc4 {[%emt 0:00:01]} Qb8 {[%emt 0:00:08]} 38. Rb1 {[%emt 0:00:26]} Qa8 {[%emt 0:00:19]} 39. Ne4 {[%emt 0:00:49]} Nd7 {[%emt 0:00:43]} 40. Kg3 {[%emt 0:00:00]} Qa6 {[%emt 0:00:00]} 41. Re1 {[%emt 0:18:45]} Qa5 {[%emt 0:07:40]} 42. Re2 {[%emt 0:02:04]} Qa1 {[%emt 0:01:17]} 43. Kg2 {[%emt 0:05:44]} Qa6 {[%emt 0:07:58]} 44. Qb3 {[%emt 0:02:55]} Re8 {[%emt 0:10:52]} 45. Ra2 {[%emt 0:01:07]} Qc8 {[%emt 0:02:55]} 46. Nxd6 {[%emt 0:02:47]} Qb8 {[%emt 0:00:01]} 47. Qxb8 {[%emt 0:00:31]} Rxb8 {[%emt 0:00:01]} 48. Ra7 {[%emt 0:00:29]} Ne5 {[%emt 0:01:18]} 49. f4 {[%emt 0:00:53]} Rb2+ {[%emt 0:00:17]} 50. Kg3 {[%emt 0:00:36]} Rb3+ {[%emt 0:00:12]} 51. Kg2 {[%emt 0:01:28]} Rb2+ {[%emt 0:00:05]} 52. Kf1 {[%emt 0:00:10]} Ng4 {[%emt 0:02:17]} 53. Ra8+ {[%emt 0:00:38]} Kh7 {[%emt 0:00:26]} 54. Ne4 {[%emt 0:00:48]} Kg7 {[%emt 0:02:33]} 55. d6 {[%emt 0:00:04]} Ne3+ {[%emt 0:00:49]} 56. Ke1 {[%emt 0:00:42]} Ng2+ {[%emt 0:00:45]} 57. Kd1 {[%emt 0:00:28]} Ne3+ {[%emt 0:00:09]} 58. Kc1 {[%emt 0:00:22]} Rc2+ {[%emt 0:00:11]} 59. Kb1 {[%emt 0:00:02]} Rxc4 {[%emt 0:00:10]} 60. Nf6 {[%emt 0:00:54]} 1-0

[Event "GAMMA Reykjavik Open 2019"]
[Site "Reykjavik"]
[Date "2019.04.10"]
[Round "4.21"]
[White "Kevlishvili, Robby"]
[Black "Jaksland, Tim"]
[Result "1-0"]
[ECO "B38"]
[WhiteElo "2451"]
[BlackElo "2222"]
[Annotator "RC"]
[PlyCount "75"]
[EventDate "2019.04.04"]
[EventType "swiss"]
[EventCountry "ISL"]
[SourceTitle "playchess.com"]
[Source "ChessBase"]
[SourceQuality "1"]
[TimeControl "40/5400+30:1800+30"]

1. e4 {[%emt 0:00:00]} c5 {[%emt 0:00:00]} 2. Nf3 {[%emt 0:00:00]} g6 {[%emt 0:00:00]} 3. c4 {[%emt 0:00:14]} Bg7 {[%emt 0:00:19]} 4. d4 {[%emt 0:00:15]} cxd4 {[%emt 0:00:15]} 5. Nxd4 {[%emt 0:00:05]} Nc6 {[%emt 0:00:14]} 6. Be3 {[%emt 0:00:05]} Nf6 {[%emt 0:00:21]} 7. Nc3 {[%emt 0:00:05]} O-O {[%emt 0:00:21]} 8. Be2 {[%emt 0:00:06]} b6 {[%emt 0:00:26]} 9. O-O {[%emt 0:02:02]} Bb7 {[%emt 0:00:06]} 10. f3 {[%emt 0:00:27]} e6 {[%emt 0:00:39]} 11. Qd2 {[%emt 0:17:15]} d5 {[%emt 0:01:09]} 12. Nxc6 {[%emt 0:01:14]} Bxc6 {[%emt 0:00:07]} 13. cxd5 {[%emt 0:00:43]} exd5 {[%emt 0:00:08]} 14. e5 {[%emt 0:00:05]} Ne8 {[%emt 0:00:30]} 15. f4 {[%emt 0:01:16]} f6 {[%emt 0:00:28]} 16. Bd4 {[%emt 0:04:21]} Qe7 {[%emt 0:18:14]} 17. Bf3 {[%emt 0:04:58]} Rd8 {[%emt 0:02:27]} 18. Rae1 {[%emt 0:04:25]} fxe5 {[%emt 0:02:38]} 19. Bxe5 {[%emt 0:00:17]} Bxe5 {[%emt 0:04:34]} 20. Rxe5 {[%emt 0:00:20]} Qc5+ {[%emt 0:02:49]} 21. Kh1 {[%emt 0:00:35]} Nf6 {[%emt 0:01:03]} 22. f5 {[%emt 0:11:49]} Qc4 {[%emt 0:25:03]} 23. Be2 {[%emt 0:05:58]} Qh4 {[%emt 0:01:27]} 24. Rf4 {[%emt 0:00:24]} Ne4 {[%emt 0:13:53]} 25. Nxe4 {[%emt 0:22:56]} dxe4 {[%emt 0:00:18]} 26. Qc1 {[%emt 0:00:04]} Qh6 {[%emt 0:03:16]} 27. Qc4+ {[%emt 0:04:37]} Kh8 {[%emt 0:14:11]} 28. Qc3 {[%emt 0:00:21]} Qg7 {[%emt 0:00:29]} 29. f6 {[%emt 0:01:48]} Qd7 {[%emt 0:00:46]} 30. Re7 {[%emt 0:02:18]} Qd2 {[%emt 0:01:03]} 31. Rxh7+ {[%emt 0:06:37]} Kxh7 {[%emt 0:00:27]} 32. Rh4+ {[%emt 0:00:04]} Kg8 {[%emt 0:00:35]} 33. f7+ {[%emt 0:00:05]} Kxf7 {[%emt 0:01:05]} 34. Bc4+ {[%emt 0:02:45]} Bd5 {[%emt 0:03:20]} 35. Qxd2 {[%emt 0:00:48]} Bxc4 {[%emt 0:00:08]} 36. Qc2 {[%emt 0:01:16]} Kg7 {[%emt 0:04:35]} 37. Qc3+ {[%emt 0:00:23]} Rf6 {[%emt 0:00:07]} 38. h3 {[%emt 0:00:05]} 1-0

[Event "GAMMA Reykjavik Open 2019"]
[Site "Reykjavik"]
[Date "2019.04.10"]
[Round "4.23"]
[White "Korley, Kassa"]
[Black "Esbensen, Arnt"]
[Result "1-0"]
[ECO "A55"]
[WhiteElo "2440"]
[BlackElo "2176"]
[Annotator "RC"]
[PlyCount "81"]
[EventDate "2019.04.04"]
[EventType "swiss"]
[EventCountry "ISL"]
[SourceTitle "playchess.com"]
[Source "ChessBase"]
[SourceQuality "1"]
[TimeControl "40/5400+30:1800+30"]

1. d4 {[%emt 0:00:00]} d6 {[%emt 0:00:00]} 2. Nf3 {[%emt 0:00:00]} Nf6 {[%emt 0:00:58]} 3. c4 {[%emt 0:00:00]} Nbd7 {[%emt 0:00:26]} 4. Nc3 {[%emt 0:00:00]} e5 {[%emt 0:00:20]} 5. e4 {[%emt 0:00:00]} Be7 {[%emt 0:00:25]} 6. g3 {[%emt 0:04:39]} O-O {[%emt 0:01:03]} 7. Bg2 {[%emt 0:00:07]} c6 {[%emt 0:02:52]} 8. O-O {[%emt 0:00:40]} a6 {[%emt 0:02:39]} 9. a4 {[%emt 0:07:03]} Re8 {[%emt 0:03:09]} 10. a5 {[%emt 0:01:50]} b5 {[%emt 0:02:04]} 11. axb6 {[%emt 0:00:16]} Qxb6 {[%emt 0:00:20]} 12. c5 {[%emt 0:04:53]} Qc7 {[%emt 0:11:33]} 13. cxd6 {[%emt 0:01:31]} Bxd6 {[%emt 0:02:20]} 14. Qc2 {[%emt 0:18:09]} Rb8 {[%emt 0:03:39]} 15. Rd1 {[%emt 0:07:15]} c5 {[%emt 0:31:11]} 16. dxe5 {[%emt 0:02:44]} Nxe5 {[%emt 0:01:45]} 17. Rxd6 {[%emt 0:03:12]} Nxf3+ {[%emt 0:01:13]} 18. Bxf3 {[%emt 0:00:09]} Qxd6 {[%emt 0:00:18]} 19. Bf4 {[%emt 0:00:28]} Qb6 {[%emt 0:00:21]} 20. Bxb8 {[%emt 0:04:23]} Qxb8 {[%emt 0:00:40]} 21. Na4 {[%emt 0:02:06]} Nd7 {[%emt 0:03:21]} 22. Be2 {[%emt 0:04:06]} Qe5 {[%emt 0:01:15]} 23. Nc3 {[%emt 0:00:15]} Qe6 {[%emt 0:03:11]} 24. f3 {[%emt 0:01:31]} Bb7 {[%emt 0:00:28]} 25. Rd1 {[%emt 0:00:26]} h5 {[%emt 0:09:31]} 26. Nd5 {[%emt 0:02:47]} Bxd5 {[%emt 0:00:49]} 27. Rxd5 {[%emt 0:00:02]} h4 {[%emt 0:00:41]} 28. gxh4 {[%emt 0:06:26]} Qh3 {[%emt 0:08:21]} 29. Qc3 {[%emt 0:14:32]} Nf8 {[%emt 0:03:07]} 30. Rg5 {[%emt 0:05:26]} Ng6 {[%emt 0:00:33]} 31. Rg3 {[%emt 0:02:32]} Qxh4 {[%emt 0:00:41]} 32. Bxa6 {[%emt 0:01:07]} Qh6 {[%emt 0:01:49]} 33. Bc4 {[%emt 0:01:28]} Rd8 {[%emt 0:00:48]} 34. Bd5 {[%emt 0:01:19]} Nf4 {[%emt 0:00:48]} 35. Qa5 {[%emt 0:01:10]} Rd6 {[%emt 0:01:13]} 36. Qc7 {[%emt 0:01:16]} Nxd5 {[%emt 0:01:56]} 37. Qc8+ {[%emt 0:00:18]} Kh7 {[%emt 0:00:30]} 38. Rh3 {[%emt 0:00:08]} Nf4 {[%emt 0:01:18]} 39. Rxh6+ {[%emt 0:00:16]} gxh6 {[%emt 0:00:11]} 40. Qf5+ {[%emt 0:00:00]} Rg6+ {[%emt 0:00:00]} 41. Kf1 {[%emt 0:00:42]} 1-0

[Event "GAMMA Reykjavik Open 2019"]
[Site "Reykjavik"]
[Date "2019.04.10"]
[Round "4.24"]
[White "Astaneh Lopez, Alex"]
[Black "Obrien, Matthew"]
[Result "1-0"]
[ECO "A39"]
[WhiteElo "2427"]
[BlackElo "2110"]
[Annotator "NA"]
[PlyCount "59"]
[EventDate "2019.04.04"]
[EventType "swiss"]
[EventCountry "ISL"]
[SourceTitle "playchess.com"]
[Source "ChessBase"]
[SourceQuality "1"]
[TimeControl "40/5400+30:1800+30"]

1. d4 {[%emt 0:10:25]} Nf6 {[%emt 0:00:00]} 2. c4 {[%emt 0:00:10]} g6 {[%emt 0:00:04]} 3. Nf3 {[%emt 0:00:09]} Bg7 {[%emt 0:00:13]} 4. g3 {[%emt 0:00:07]} O-O {[%emt 0:00:13]} 5. Bg2 {[%emt 0:00:03]} d6 $14 {[%emt 0:01:24]} 6. O-O {[%emt 0:00:07]} Nc6 {[%emt 0:00:30]} 7. Nc3 {[%emt 0:01:59]} Bf5 {[%emt 0:00:53]} 8. d5 {[%emt 0:08:12]} Na5 {[%emt 0:00:31]} 9. Nd4 {[%emt 0:00:06]} Bd7 {[%emt 0:01:15]} 10. b3 {[%emt 0:00:44]} c5 {[%emt 0:01:54]} 11. dxc6 {[%emt 0:07:05]} Nxc6 {[%emt 0:00:18]} 12. Bb2 {[%emt 0:01:37]} Qa5 {[%emt 0:03:41]} 13. Nc2 {[%emt 0:02:52]} Qh5 {[%emt 0:16:08]} 14. e4 {[%emt 0:01:35]} Bg4 {[%emt 0:02:55]} 15. f3 {[%emt 0:00:11]} Be6 {[%emt 0:03:43]} 16. Nd5 {[%emt 0:07:38]} Bxd5 {[%emt 0:01:01]} 17. cxd5 {[%emt 0:03:57]} Ne5 {[%emt 0:03:44]} 18. Bd4 {[%emt 0:04:41]} g5 {[%emt 0:15:28]} 19. Ne3 {[%emt 0:09:57]} g4 {[%emt 0:03:49]} 20. Nf5 {[%emt 0:11:12]} e6 {[%emt 0:10:40]} 21. Nxg7 {[%emt 0:01:26]} Kxg7 {[%emt 0:00:19]} 22. f4 {[%emt 0:00:22]} Ned7 {[%emt 0:04:49]} 23. e5 {[%emt 0:08:01]} Nxd5 {[%emt 0:05:06]} 24. Bxd5 {[%emt 0:00:47]} exd5 {[%emt 0:00:19]} 25. e6+ {[%emt 0:01:39]} Nf6 {[%emt 0:00:10]} 26. e7 {[%emt 0:00:08]} Rfe8 {[%emt 0:00:43]} 27. Bxf6+ {[%emt 0:02:46]} Kxf6 {[%emt 0:00:06]} 28. Qd4+ {[%emt 0:00:03]} Kg6 {[%emt 0:03:30]} 29. f5+ {[%emt 0:00:17]} Kh6 {[%emt 0:00:26]} 30. Qf6+ {[%emt 0:00:04]} 1-0

[Event "GAMMA Reykjavik Open 2019"]
[Site "Reykjavik"]
[Date "2019.04.10"]
[Round "4.25"]
[White "Yoo, Christopher Woojin"]
[Black "Hardarson, Petur Palmi"]
[Result "1-0"]
[ECO "B94"]
[WhiteElo "2414"]
[BlackElo "1808"]
[Annotator "NA"]
[PlyCount "69"]
[EventDate "2019.04.04"]
[EventType "swiss"]
[EventCountry "ISL"]
[SourceTitle "playchess.com"]
[Source "ChessBase"]
[SourceQuality "1"]
[TimeControl "40/5400+30:1800+30"]

1. e4 {[%emt 0:00:00]} c5 {[%emt 0:00:00]} 2. Nf3 {[%emt 0:00:00]} d6 {[%emt 0:00:00]} 3. d4 {[%emt 0:00:00]} cxd4 {[%emt 0:00:00]} 4. Nxd4 {[%emt 0:00:00]} Nf6 {[%emt 0:00:16]} 5. Nc3 {[%emt 0:00:00]} a6 {[%emt 0:00:30]} 6. Nb3 {[%emt 0:00:00]} e5 {[%emt 0:01:31]} 7. Bg5 {[%emt 0:00:02]} Be7 {[%emt 0:01:10]} 8. Bxf6 {[%emt 0:00:24]} Bxf6 {[%emt 0:00:18]} 9. Qd3 {[%emt 0:00:21]} Be6 {[%emt 0:03:05]} 10. O-O-O {[%emt 0:00:54]} Be7 {[%emt 0:00:44]} 11. Nd5 {[%emt 0:02:08]} Bxd5 {[%emt 0:02:48]} 12. Qxd5 {[%emt 0:00:13]} Qc7 {[%emt 0:02:34]} 13. Kb1 {[%emt 0:08:23]} O-O {[%emt 0:01:37]} 14. Na5 {[%emt 0:12:30]} Nc6 {[%emt 0:03:16]} 15. Nc4 {[%emt 0:00:07]} Rfd8 {[%emt 0:10:48]} 16. Ne3 {[%emt 0:12:18]} Bg5 {[%emt 0:03:58]} 17. Nf5 {[%emt 0:05:12]} Ne7 {[%emt 0:03:30]} 18. Nxe7+ {[%emt 0:01:09]} Bxe7 {[%emt 0:01:00]} 19. Bc4 {[%emt 0:09:33]} Bf6 {[%emt 0:13:09]} 20. Qd3 {[%emt 0:01:47]} Rac8 {[%emt 0:03:14]} 21. Bd5 {[%emt 0:02:25]} b5 {[%emt 0:01:45]} 22. h4 {[%emt 0:02:15]} a5 {[%emt 0:07:18]} 23. g4 {[%emt 0:01:50]} g6 {[%emt 0:01:53]} 24. g5 {[%emt 0:02:43]} Bg7 {[%emt 0:00:17]} 25. c3 {[%emt 0:03:25]} b4 {[%emt 0:02:24]} 26. c4 {[%emt 0:00:36]} Rb8 {[%emt 0:02:00]} 27. h5 {[%emt 0:01:05]} b3 {[%emt 0:07:03]} 28. a3 {[%emt 0:00:58]} Qa7 {[%emt 0:02:31]} 29. hxg6 {[%emt 0:01:45]} hxg6 {[%emt 0:01:14]} 30. Qf3 {[%emt 0:01:50]} Rdc8 {[%emt 0:01:41]} 31. Rh4 {[%emt 0:01:47]} Rc5 {[%emt 0:01:07]} 32. Rdh1 {[%emt 0:00:53]} Rxd5 {[%emt 0:01:33]} 33. cxd5 {[%emt 0:00:48]} Qc7 {[%emt 0:02:24]} 34. Rh7 {[%emt 0:01:02]} Qe7 {[%emt 0:01:38]} 35. Qh3 {[%emt 0:00:18]} 1-0

[Event "GAMMA Reykjavik Open 2019"]
[Site "Reykjavik"]
[Date "2019.04.10"]
[Round "4.26"]
[White "Abbas, Daniel"]
[Black "Eggleston, David J"]
[Result "0-1"]
[ECO "B51"]
[WhiteElo "2253"]
[BlackElo "2401"]
[Annotator "ChessBase"]
[PlyCount "114"]
[EventDate "2019.04.04"]
[EventType "swiss"]
[EventCountry "ISL"]
[SourceTitle "playchess.com"]
[Source "ChessBase"]
[SourceQuality "1"]
[TimeControl "40/5400+30:1800+30"]

1. e4 {[%emt 0:00:00]} c5 {[%emt 0:07:26]} 2. Nf3 {[%emt 0:00:00]} d6 {[%emt 0:00:12]} 3. Bb5+ {[%emt 0:00:00]} Nd7 {[%emt 0:00:06]} 4. O-O {[%emt 0:00:18]} Ngf6 {[%emt 0:00:15]} 5. Re1 {[%emt 0:00:08]} a6 {[%emt 0:00:05]} 6. Bd3 {[%emt 0:00:04]} e6 {[%emt 0:00:22]} 7. c3 {[%emt 0:00:09]} Be7 {[%emt 0:01:23]} 8. Bc2 {[%emt 0:00:14]} b5 {[%emt 0:01:07]} 9. d4 {[%emt 0:00:42]} cxd4 {[%emt 0:00:13]} 10. cxd4 {[%emt 0:00:07]} O-O {[%emt 0:01:00]} 11. Nc3 {[%emt 0:06:48]} Bb7 {[%emt 0:02:04]} 12. a3 {[%emt 0:05:07]} Rc8 {[%emt 0:07:25]} 13. h3 {[%emt 0:12:17]} Re8 {[%emt 0:03:22]} 14. Bd3 {[%emt 0:03:37]} e5 {[%emt 0:03:20]} 15. d5 {[%emt 0:00:55]} g6 {[%emt 0:00:28]} 16. Bd2 {[%emt 0:05:28]} Bf8 {[%emt 0:01:49]} 17. b4 {[%emt 0:05:31]} Nb6 {[%emt 0:09:06]} 18. a4 {[%emt 0:02:52]} bxa4 {[%emt 0:00:35]} 19. Nxa4 {[%emt 0:01:44]} Bg7 {[%emt 0:25:50]} 20. Nxb6 {[%emt 0:14:46]} Qxb6 {[%emt 0:00:02]} 21. Be3 {[%emt 0:00:55]} Qc7 {[%emt 0:03:49]} 22. Ra3 {[%emt 0:12:16]} Nxd5 {[%emt 0:05:54]} 23. exd5 {[%emt 0:00:34]} e4 {[%emt 0:00:04]} 24. Bxa6 {[%emt 0:01:29]} exf3 {[%emt 0:00:17]} 25. Qxf3 {[%emt 0:01:47]} Bxa6 {[%emt 0:00:21]} 26. Rxa6 {[%emt 0:00:11]} Qb7 {[%emt 0:00:49]} 27. Ra4 {[%emt 0:05:42]} Re5 {[%emt 0:03:53]} 28. Rd1 {[%emt 0:01:43]} Rf5 {[%emt 0:00:13]} 29. Qe4 {[%emt 0:01:49]} Qb5 {[%emt 0:03:22]} 30. Ra2 {[%emt 0:03:23]} Re5 {[%emt 0:01:12]} 31. Qd3 {[%emt 0:02:15]} Qxb4 {[%emt 0:01:01]} 32. Rc2 {[%emt 0:01:34]} Rce8 {[%emt 0:02:52]} 33. Rc4 {[%emt 0:01:42]} Qa5 {[%emt 0:04:28]} 34. Rc6 {[%emt 0:02:03]} Bf8 {[%emt 0:02:49]} 35. Ra6 {[%emt 0:01:33]} Qb4 {[%emt 0:01:33]} 36. Rb1 {[%emt 0:03:23]} Rxd5 {[%emt 0:02:02]} 37. Qxg6+ {[%emt 0:01:16]} hxg6 {[%emt 0:00:26]} 38. Rxb4 {[%emt 0:00:04]} Bg7 {[%emt 0:02:09]} 39. Ra7 {[%emt 0:04:09]} Be5 {[%emt 0:00:15]} 40. Bf4 {[%emt 0:00:00]} Rd1+ {[%emt 0:00:00]} 41. Kh2 {[%emt 0:02:18]} Bd4 {[%emt 0:08:58]} 42. Rd7 {[%emt 0:06:49]} Bxf2 {[%emt 0:04:27]} 43. Rxd6 {[%emt 0:01:49]} Rf1 {[%emt 0:02:56]} 44. Rb2 {[%emt 0:07:17]} Ra8 {[%emt 0:09:15]} 45. Be5 {[%emt 0:06:00]} Bc5 {[%emt 0:04:20]} 46. Rd5 {[%emt 0:02:35]} Bg1+ {[%emt 0:02:18]} 47. Kg3 {[%emt 0:00:08]} Rf5 {[%emt 0:00:15]} 48. Ra5 {[%emt 0:03:48]} Re8 {[%emt 0:00:44]} 49. Rbb5 {[%emt 0:00:59]} Bf2+ {[%emt 0:01:22]} 50. Kh2 {[%emt 0:00:30]} Be1 {[%emt 0:00:30]} 51. g4 {[%emt 0:01:02]} Bxa5 {[%emt 0:00:18]} 52. gxf5 {[%emt 0:00:08]} Rxe5 {[%emt 0:00:06]} 53. Rxe5 {[%emt 0:02:57]} Bc7 {[%emt 0:00:02]} 54. fxg6 {[%emt 0:00:08]} Bxe5+ {[%emt 0:00:09]} 55. Kg2 {[%emt 0:00:04]} fxg6 {[%emt 0:00:19]} 56. h4 {[%emt 0:00:05]} Kg7 {[%emt 0:00:04]} 57. h5 {[%emt 0:00:02]} g5 {[%emt 0:00:11]} 0-1

[Event "GAMMA Reykjavik Open 2019"]
[Site "Reykjavik"]
[Date "2019.04.10"]
[Round "4.27"]
[White "Salles, Louis"]
[Black "Tania, Sachdev"]
[Result "0-1"]
[ECO "C45"]
[WhiteElo "2221"]
[BlackElo "2397"]
[Annotator "NA"]
[PlyCount "54"]
[EventDate "2019.04.04"]
[EventType "swiss"]
[EventCountry "ISL"]
[SourceTitle "playchess.com"]
[Source "ChessBase"]
[SourceQuality "1"]
[TimeControl "40/5400+30:1800+30"]

1. e4 {[%emt 0:00:00]} e5 {[%emt 0:00:39]} 2. Nf3 {[%emt 0:00:00]} Nc6 {[%emt 0:00:06]} 3. d4 {[%emt 0:00:00]} exd4 {[%emt 0:00:14]} 4. Nxd4 {[%emt 0:00:00]} Nf6 {[%emt 0:00:05]} 5. Nxc6 {[%emt 0:00:00]} bxc6 {[%emt 0:00:05]} 6. e5 {[%emt 0:00:04]} Qe7 {[%emt 0:00:38]} 7. Qe2 {[%emt 0:00:09]} Nd5 {[%emt 0:00:14]} 8. c4 {[%emt 0:00:16]} Ba6 {[%emt 0:00:39]} 9. Nd2 {[%emt 0:00:16]} O-O-O {[%emt 0:01:35]} 10. b3 {[%emt 0:13:03]} f6 {[%emt 0:05:05]} 11. Qe4 {[%emt 0:04:46]} Nb6 {[%emt 0:00:51]} 12. Bb2 {[%emt 0:01:34]} fxe5 {[%emt 0:24:25]} 13. O-O-O {[%emt 0:02:34]} Re8 {[%emt 0:04:39]} 14. Nf3 {[%emt 0:17:13]} Bb7 {[%emt 0:26:20]} 15. Nxe5 {[%emt 0:17:37]} g5 {[%emt 0:16:15]} 16. Bd3 {[%emt 0:08:11]} Bg7 {[%emt 0:00:31]} 17. Rhe1 {[%emt 0:02:09]} Rhf8 {[%emt 0:12:14]} 18. Qe2 {[%emt 0:26:35]} Qc5 {[%emt 0:01:10]} 19. f4 {[%emt 0:03:08]} Rxf4 {[%emt 0:02:00]} 20. Qh5 {[%emt 0:00:32]} Rff8 {[%emt 0:01:02]} 21. Qxg5 {[%emt 0:00:42]} Bf6 {[%emt 0:00:44]} 22. Qg3 {[%emt 0:01:02]} Rg8 {[%emt 0:00:23]} 23. Qf4 {[%emt 0:00:29]} Bg5 {[%emt 0:00:15]} 24. Qxg5 {[%emt 0:01:01]} Rxg5 {[%emt 0:00:04]} 25. Nxd7 {[%emt 0:00:13]} Rxe1 {[%emt 0:00:25]} 26. Nxc5 {[%emt 0:00:40]} Rxd1+ {[%emt 0:00:04]} 27. Kxd1 {[%emt 0:00:06]} Rxc5 {[%emt 0:00:11]} 0-1